{"text_format":"1","workbook":"xlsx","n_sheets":6,"sheets":["Конструктор рамочного фасада","бланк заказа","Таблицы Артикула","база данных","Лист1","Лист3"],"not_rendered":{"charts":0,"images":2,"macros":1,"external_links":0,"defined_names":46,"comments":0,"pivot_tables":0},"unopened":[],"bounds":{"document_bytes":16777216,"sheet_cells":100000,"rows_first":2000,"rows_last":500,"rows_between":2000,"halvings":0,"cell_chars":16384,"cell_head_chars":4096},"cells_cut":0,"cells_raw":0,"read":"whole","date_system":"1900"}

{"sheet":"Конструктор рамочного фасада","index":0,"n_rows":26,"n_cols":6,"rows_kept":26,"cut":false,"hidden":false,"merged":[[0,0,0,1]]}
["РАЗМЕР ФАСАДА"]
["высота","ширина"]
[716,356]
[]
["Тип фасада",null,null,"артикул","описание","цена"]
["CLASSIC","FC",null,{"$f":"CONCATENATE(\"FC\",B8,B10,B12,\".\",'база данных'!I2,\".\",'база данных'!J2,\".\",B14,B16,\".\",B18,\".\",B20,\".\",B22,B24,\".\",B26)","v":"FC2001.0716.0356.614.30.017.610.30"},null,5300]
["Вариант профиля","артикул"]
["Профиль_1308",{"$f":"VLOOKUP(A8,Таблица9[],2,0)","v":2}]
["наполнение"]
["стекло",{"$f":"VLOOKUP(A10,Таблица_наполнения[],2,0)","v":"00"},null,{"$f":"CONCATENATE(\"Фасад рамочный \",A10,\" \",A8, \" , \",A3,\"x\",B3,\" \",A14,\" \",A16,\" \",A20,\" \",A22,\" патина \",A24,)","v":"Фасад рамочный стекло Профиль_1308 , 716x356 Краска_фисташковый_CS014 сусальное_золото_патина ММ017.10 цвет_фасада патина нет_патины"}]
["стекло"]
["Матовое (сатин)",{"$f":"VLOOKUP(A12,Таблица12[],2,0)","v":1}]
["покрытие фасада",null,null,500]
["Краска_фисташковый_CS014",{"$f":"VLOOKUP(A14,Таблица13[],2,0)","v":"61"}]
["Патина "]
["сусальное_золото_патина",{"$f":"VLOOKUP(A16,Таблица14[],2,0)","v":4}]
["лак фасада"]
["Лак 30%",{"$f":"VLOOKUP(A18,Таблица15[],2,0)","v":"30"}]
["Молдинг вставка"]
["ММ017.10",{"$f":"VLOOKUP(A20,Таблица16[],2,0)","v":"017"}]
["цвет молдинга"]
["цвет_фасада",{"$f":"VLOOKUP(A22,Таблица24[],2,0)","v":"61"}]
["патина на молдинге"]
["нет_патины",{"$f":"VLOOKUP(A24,Таблица18[],2,0)","v":0}]
["Лак молдига"]
["как на фасаде",{"$f":"VLOOKUP(A26,Таблица19[],2,0)","v":"30"}]

{"sheet":"бланк заказа","index":1,"n_rows":10,"n_cols":4,"rows_kept":10,"cut":false,"hidden":false,"merged":[]}
[]
[null,"бланк заказа"]
[null,"артикул","описание","цена"]
[null,1,"FC1001.0176.2000.010.30.025.510.30",5300]
[null,2,"FC1001.0176.2000.010.30.025.510.30",5300]
[null,3,"FC1001.0176.2000.010.30.025.510.30",5300]
[null,4,"FC1001.0176.2000.010.30.025.510.30",5300]
[null,5,"FC1001.0176.2000.010.30.025.510.30",5300]
[null,null,null,{"$f":"SUM(D4:D8)","v":26500}]
[null,null,null,{"$f":"SUM(D9:D9)","v":26500}]

{"sheet":"Таблицы Артикула","index":2,"n_rows":94,"n_cols":51,"rows_kept":94,"cut":false,"hidden":false,"merged":[[26,17,26,20],[0,2,0,13],[7,17,7,20],[9,16,9,18],[11,2,11,10],[11,15,11,20],[0,40,0,41],[0,43,0,44],[0,46,0,47],[0,49,0,50],[0,22,0,23],[0,25,0,26],[0,28,0,29],[0,31,0,32],[0,34,0,35],[0,37,0,38]]}
[null,null,"Расшифровка артикула фасада",null,null,null,null,null,null,null,null,null,null,null,null,null,null,null,null,null,null,null,"Вариант профиля",null,null,"Вариант наполнения",null,null,"Варианты Стекла",null,null,"Покрытие фасада",null,null,"Патина на фасаде",null,null,"лак фасада",null,null,"молдинг вставка",null,null,"цвет молдинга",null,null,"патина молдинга",null,null,"лак на молдинге"]
[null,"FС",1,10,1,".","0716",".","0446",".","51","0",".","00",".","025",".","51",2,".",30,null,"Столбец1","Столбец2",null,"Столбец1","Столбец2",null,"Столбец1","Столбец2",null,"Столбец1","Столбец2",null,"Столбец1","Столбец2",null,"Столбец1","Столбец2",null,"Столбец1","Столбец2",null,"Столбец1","Столбец2",null,"Столбец1","Столбец2",null,"Столбец1","Столбец2"]
[null,null,null,null,null,null,null,null,null,null,null,null,null,null,null,null,null,null,null,null,null,null,"Профиль_1296",1,null,"стекло","00",null,"Нет стекла",0,null,"Профиль_1296",null,null,"патина_черная",3,null,"нет лака","00",null,"ММ003.10","003",null,"цвет_фасада",{"$f":"IF(AP33='Таблицы Артикула'!BQ2,52,IF(AP33='Таблицы Артикула'!BQ3,53,AP33))","v":52},null,"черная",3,null,"нет лака","00"]
[null,null,"А","Б","В",null,"Г",null,"Д",null,"Е","Ж",null,"З",null,"И",null,"К","Л",null,"М",null,"Профиль_1308",2,null,"стекло_с_фацетом_20мм","01",null,"Матовое (сатин)",1,null,"Краска_Дуб_светлый","51",null,"сусальное_золото_патина",4,null,"Лак 30%","30",null,"ММ005.10","005",null,"Краска_Дуб_светлый",51,null,"золото",4,null,"Лак 30%","30"]
[null,null,null,null,null,null,null,null,null,null,null,null,null,null,null,null,null,null,null,null,null,null,"Профиль_1296_тиснение",3,null,"глухой","10",null,"Прозрачное",2,null,"Краска_Дуб_темный","52",null,"серебро_патина",5,null,"Лак 90%","90",null,"ММ017.10","017",null,"Краска_Дуб_темный",52,null,"серебро",5,null,"Лак 90%","90"]
[null,"FC - фасад  classic  (рамочный)",null,null,null,null,null,null,null,null,null,null,null,null,null,null,null,null,null,null,null,null,null,null,null,"Глухой_с_декором_№1","11",null,"бронзовое",3,null,"Краска_белая_RAL9003","53",null,"нет",0,null,null,null,null,"ММ019.10","019",null,"Краска_белая_RAL9003",53,null,"как_на_фасаде",{"$f":"'Конструктор рамочного фасада'!B16","v":4},null,"как на фасаде",{"$f":"'Конструктор рамочного фасада'!B18","v":"30"}]
[null,null,null,null,null,null,null,null,null,null,null,null,null,null,null,null,null,null,null,null,null,null,null,null,null,"Глухой_с_декором_№2","12",null,null,null,null,"Краска_ультрамарин_RAL5002","57",null,null,null,null,null,null,null,"ММ021.10","021",null,"Краска_ультрамарин_RAL5002",57,null,"нет_патины",0]
[null,"А","Вариант профиля",null,null,null,null,null,null,null,null,null,null,null,null,null,null,null,null,null,null,null,null,null,null,"Глухой_с_декором_№3","13",null,null,null,null,"Краска_CS193","58",null,null,null,null,null,null,null,"ММ025.10","025",null,"Краска_CS193",58]
[null,null,null,null,null,null,null,null,null,null,null,null,null,null,null,null,null,null,null,null,null,null,null,null,null,"Глухой_с_декором_№4","14",null,null,null,null,"Краска_CS076","59",null,null,null,null,null,null,null,"ММ026.10","026",null,"Краска_CS076",59]
[null,"1 -",null,null,null,null,1296,null,null,null,"2 -",null,null,null,null,null,1308,null,null,null,null,null,null,null,null,"Глухой_зеркало_с_фацетом_20мм","15",null,null,null,null,"Краска_БЕЖ_CS023","60",null,null,null,null,null,null,null,"ММ027.10","027",null,"Краска_БЕЖ_CS023",60]
[null,null,null,null,null,null,null,null,null,null,null,null,null,null,null,null,null,null,null,null,null,null,null,null,null,"Рамка_без_вставки+уплотнитель","16",null,null,null,null,"Краска_фисташковый_CS014","61",null,null,null,null,null,null,null,"ММ028.10","028",null," Краска_фисташковый_CS014",61]
[null,"Б","Вариант наполнения",null,null,null,null,null,null,null,null,null,null,null,null,null,null,null,null,null,null,null,null,null,null,"Вставка_с_фрезеровкой","17",null,null,null,null,"черный","62",null,null,null,null,null,null,null,"ММ029.10","029",null," черный",62]
[null,null,"00 - стекло",null,null,null,null,null,null,null,"21 - глухой с перемычкой ",null,null,null,null,null,null,null,null,null,null,null,null,null,null,"Глухой_с_перемычкой","21",null,null,null,null,"Краска_RAL1019","63",null,null,null,null,null,null,null,null,null,null," Краска_RAL1019",63]
[null,null,"01 - стекло с фацетом",null,null,null,null,null,null,null,"31 - глухой с перемычкой + декор",null,null,null,null,null,null,null,null,null,null,null,null,null,null,"Глухой_с_перемычкой_+декор","31",null,null,null,null,"Краска_Белый_глянец","65",null,null,null,null,null,null,null,null,null,null,"сусальное_золото",64]
[null,null,null,null,null,null,null,null,null,null,"41 - глухой/перемычка/стекло",null,null,null,null,null,null,null,null,null,null,null,null,null,null,"Глухой_перемычка__стекло","41",null,null,null,null,"ПВХ_Дуб_светлый","01"]
[null,null,"10 - глухой",null,null,null,null,null,null,null,"51 - глухой+декор/перемычка/стекло",null,null,null,null,null,null,null,null,null,null,null,null,null,null,"Глухой_декор_перемычка_стекло","51",null,null,null,null,"ПВХ_Дуб_темный","02"]
[null,null,"11 - глухой с декором №1",null,null,null,null,null,null,null,null,null,null,null,null,null,null,null,null,null,null,null,null,null,null,null,null,null,null,null,null,"Сусальное_золото","64"]
[null,null,"12 - глухой с декором №2",null,null,null,null,null,null,null,null,null,null,null,null,null,null,null,null,null,null,null,null,null,null,null,null,null,null,null,null,"RAL1015","66"]
[null,null,"13 - глухой с декором №3",null,null,null,null,null,null,null,null,null,null,null,null,null,null,null,null,null,null,null,null,null,null,null,null,null,null,null,null,"RAL6034","67"]
[null,null,"14 - глухой с декором №4",null,null,null,null,null,null,null,null,null,null,null,null,null,null,null,null,null,null,null,null,null,null,null,null,null,null,null,null,"CS048","68"]
[null,null,"15 - глухой + зеркало с фацетом 20мм"]
[null,null,"16 - рамка без вставки + штапик (паз в четверть)"]
[null,null,"17 - вставка с фрезеровкой"]
[]
[]
[]
[null,"В","Вариант стекла"]
[null,null,"1 - матовое (сатин)"]
[null,null,"2 - прозрачное"]
[null,null,"3 - бронзовое"]
[]
[null,"Г","Высота фасада"]
[]
[null,"Д","Ширина фасада"]
[]
[null,"Е","Вариант покрытия"]
[null,null,"Пленка:",null,null,null,null,null,null,null,"Краска:"]
[null,null,null,"01 - дуб светлый",null,null,null,null,null,null,null,"51 - Дуб светлый"]
[null,null,null,"02 - дуб темный",null,null,null,null,null,null,null,"52 - Дуб темный"]
[null,null,null,null,null,null,null,null,null,null,null,"53 - RAL 9003 signal white"]
[null,null,null,null,null,null,null,null,null,null,null,"57 - RAL 5002 ultramarin blue"]
[null,null,null,null,null,null,null,null,null,null,null,"58 - CS 193 grigio mimetico"]
[null,null,null,null,null,null,null,null,null,null,null,"59 -CS 076 marrone ligure"]
[null,null,null,null,null,null,null,null,null,null,null,"60 - CS 023 garvia"]
[null,null,null,null,null,null,null,null,null,null,null,"61 - CS 014 pistacchio"]
[null,null,null,null,null,null,null,null,null,null,null,"62 - черный"]
[null,null,null,null,null,null,null,null,null,null,null,"63 - RAL 1019 graubeige"]
[null,null,null,null,null,null,null,null,null,null,null,"64 - ПВХ 01 + краска 51(дуб св.)"]
[null,null,null,null,null,null,null,null,null,null,null,"65 - Белый глянец"]
[]
[null,"Ж","Нанесение",null,null,null,null,null,null,null,null,null,null,null,null,null,null,null,null,null,null,"патина"]
[null,null,"3 - патина (бук тироль, дуб темный, дуб венге, мирт)"]
[null,null,"4 - патина сусальное золото"]
[null,null,"5 - патина серебро"]
[]
[null,"З","Лак фасада"]
[null,null,"30 - 30%"]
[null,null,"90 - 90%"]
[]
[null,"И","Молдинг-вставка"]
[null,null,"003 - ММ003.10",null,null,null,null,null,null,null,null,"025 - ММ025.10"]
[null,null,"005 - ММ005.10",null,null,null,null,null,null,null,null,"026 - ММ026.10"]
[null,null,"017 - ММ017.10",null,null,null,null,null,null,null,null,"027 - ММ027.10"]
[null,null,"019 - ММ019.10",null,null,null,null,null,null,null,null,"028 - ММ028.10"]
[null,null,"021 - ММ021.10",null,null,null,null,null,null,null,null,"029 - ММ029.10"]
[]
[]
[]
[]
[]
[]
[]
[null,"К","Цвет молдинга-вставки"]
[null,null,"51 - Дуб светлый",null,null,null,null,null,null,null,null,"59 -CS 076 marrone ligure"]
[null,null,"52 - Дуб темный",null,null,null,null,null,null,null,null,"60 - CS 023 garvia"]
[null,null,"53 - RAL 9003 signal white",null,null,null,null,null,null,null,null,"61- CS 014 pistacchio"]
[null,null,"57 - RAL 5002 ultramarin blue",null,null,null,null,null,null,null,null,"62 - черный"]
[null,null,"58 - CS 193 grigio mimetico",null,null,null,null,null,null,null,null,"63 - RAL 1019 graubeige"]
[]
[]
[]
[]
[]
[]
[null,"Л","Нанесение молдинга-вставки"]
[null,null,"1 - спецэффект неаполитанское золото"]
[null,null,"2 - спецэффект алюминий"]
[null,null,"3 - патина (бук тироль, дуб темный, дуб венге, мирт)"]
[null,null,"4 - патина сусальное золото"]
[null,null,"5 - патина серебро"]
[]
[null,"М","Лак молдинга-вставки"]
[null,null,"30 - 30%"]
[null,null,"90 - 90%"]

{"sheet":"база данных","index":3,"n_rows":54,"n_cols":19,"rows_kept":54,"cut":false,"hidden":false,"merged":[]}
[null,null,null,null,null,null,null,"размер фасада","высота","ширина"]
[null,null,null,null,null,null,null,null,{"$f":"IF('Конструктор рамочного фасада'!A3<1000,CONCATENATE(\"0\",'Конструктор рамочного фасада'!A3,),'Конструктор рамочного фасада'!A3)","v":"0716"},{"$f":"IF('Конструктор рамочного фасада'!B3<1000,CONCATENATE(\"0\",'Конструктор рамочного фасада'!B3,),'Конструктор рамочного фасада'!B3)","v":"0356"}]
[null,null,"Вариант профиля",null,"стекло"]
[null,null,"Профиль_1296",null,"стекло","стекло_с_фацетом_20мм","глухой","Глухой_с_декором_№1","Глухой_с_декором_№2","Глухой_с_декором_№3","Глухой_с_декором_№4","Глухой_зеркало_с_фацетом_20мм","Рамка_без_вставки_уплотнитель","Вставка_с_фрезеровкой","Глухой_с_перемычкой","Глухой_с_перемычкой +декор","Глухой_перемычка__стекло","Глухой+декор_перемычка__стекло"]
[null,null,"Профиль_1308",null,"Матовое (сатин)","Матовое (сатин)","Нет стекла","Нет стекла","Нет стекла","Нет стекла","Нет стекла","Нет стекла","Нет стекла","Нет стекла","Нет стекла","Нет стекла","Матовое (сатин)","Матовое (сатин)"]
[null,null,"Профиль_1296_тиснение",null,"Прозрачное","Прозрачное",null,null,null,null,null,null,null,null,null,null,"Прозрачное","Прозрачное"]
[null,null,null,null,"бронзовое","бронзовое",null,null,null,null,null,null,null,null,null,null,"бронзовое","бронзовое"]
[]
[]
[]
[]
[]
[]
[]
[null,null,"Покрытие фасада",null,null,null,"Цвет молдинга вставки",null,null,"патина молдинга"]
[null,null,"Профиль_1296","Профиль_1308","Профиль_1296_тиснение",null,"цвет молдинга","Столбец1",null,"нет_патины","черная"," золото","серебро","как_на_фасаде",null,"патина фасада"]
[null,null,"Краска_Дуб_светлый","Краска_Дуб_светлый","Краска_Дуб_светлый",null,"цвет_фасада",{"$f":"'Конструктор рамочного фасада'!B14","v":"61"},null,"нет лака","Лак 30%","Лак 30%","Лак 30%","как на фасаде",null,"нет","патина_черная","сусальное_золото_патина","серебро_патина"]
[null,null,"Краска_Дуб_темный","Краска_Дуб_темный","Краска_Дуб_темный",null,"Краска_Дуб_светлый",51,null,null,"Лак 90%","Лак 90%","Лак 90%",null,null,"нет лака","Лак 30%","Лак 30%","Лак 30%"]
[null,null,"Краска_белая_RAL9003","Краска_белая_RAL9003","Краска_белая_RAL9003",null,"Краска_Дуб_темный",52,null,null,"как на фасаде","как на фасаде","как на фасаде",null,null,null,"Лак 90%","Лак 90%","Лак 90%"]
[null,null,"Краска_ультрамарин_RAL5002","Краска_ультрамарин_RAL5002","Краска_ультрамарин_RAL5002",null,"Краска_белая_RAL9003",53]
[null,null,"Краска_CS193","Краска_CS193","Краска_CS193",null,"Краска_ультрамарин_RAL5002",57]
[null,null,"Краска_CS076","Краска_CS076","Краска_CS076",null,"Краска_CS193",58]
[null,null,"Краска_БЕЖ_CS023","Краска_БЕЖ_CS023","Краска_БЕЖ_CS023",null,"Краска_CS076",59]
[null,null,"Краска_фисташковый_CS014","Краска_фисташковый_CS014","Краска_фисташковый_CS014",null,"Краска_БЕЖ_CS023",60]
[null,null,"черный","черный","черный",null," Краска_фисташковый_CS014",61]
[null,null,"Краска_RAL1019","Краска_RAL1019","Краска_RAL1019",null," черный",62]
[null,null,"Краска_Белый_глянец","Краска_Белый_глянец","Краска_Белый_глянец",null," Краска_RAL1019",63]
[null,null,"ПВХ_Дуб_светлый","Сусальное_золото","Сусальное_золото",null,"сусальное_золото",64]
[null,null,"ПВХ_Дуб_темный","RAL1015","RAL1015"]
[null,null,"Сусальное_золото","RAL6034","RAL6034"]
[null,null,"RAL1015","CS048","CS048"]
[null,null,"RAL6034"]
[null,null,"CS048"]
[]
[]
[]
[]
[]
[]
[]
[]
[]
[]
[]
[null,null,null,"Вариант профиля"]
[null,null,null,"наполнение"]
[null,null,null,"стекло"]
[null,null,null,"покрытие фасада"]
[null,null,null,"патина на фасаде"]
[null,null,null,"лак фасада"]
[null,null,null,"молдинг вставка"]
[null,null,null,"Цвет молдинга"]
[null,null,null,"патина молдинга"]
[null,null,null,"лак молдинга"]

{"sheet":"Лист1","index":4,"n_rows":23,"n_cols":30,"rows_kept":23,"cut":false,"hidden":false,"merged":[[0,19,0,20],[0,22,0,23],[0,25,0,26],[0,28,0,29],[0,1,0,2],[0,4,0,5],[0,7,0,8],[0,10,0,11],[0,13,0,14],[0,16,0,17]]}
[null,"Вариант профиля",null,null,"Вариант наполнения",null,null,"Варианты Стекла",null,null,"Покрытие фасада",null,null,"Патина на фасаде",null,null,"лак фасада",null,null,"молдинг вставка",null,null,"цвет молдинга",null,null,"патина молдинга",null,null,"лак на молдинге"]
[null,"Столбец1","Столбец2",null,"Столбец1","Столбец2",null,"Столбец1","Столбец2",null,"Столбец1","Столбец2",null,"Столбец1","Столбец2",null,"Столбец1","Столбец2",null,"Столбец1","Столбец2",null,"Столбец1","Столбец2",null,"Столбец1","Столбец2",null,"Столбец1","Столбец2"]
[null,"Профиль 1296",1,null,"стекло","00",null,"Нет стекла",0,null,"Краска Дуб светлый",51,null,"черная патина",3,null,"эмаль","00",null,"ММ003.10","003",null,"Дуб светлый",51,null,"спецэффект неаполитанское золото",1,null,"эмаль","00"]
[null,"Профиль 1308",2,null,"стекло с фацетом 20мм","01",null,"Матовое (сатин)",1,null,"Краска Дуб темный",52,null,"патина сусальное золото",4,null,"Лак 30%","30",null,"ММ005.10","005",null,"Дуб темный",52,null,"спецэффект алюминий",2,null,"Лак 30%","30"]
[null,null,null,null,"глухой","10",null,"Прозрачное",2,null,"RAL 9003 signal white",53,null,"патина серебро",5,null,"Лак 90%","90",null,"ММ017.10","017",null,"RAL 9003 signal white",53,null,"патина (бук тироль, дуб темный, дуб венге, мирт)",3,null,"Лак 90%","90"]
[null,null,null,null,"Глухой с декором №1","11",null,"бронзовое",3,null,"RAL 5002 ultramarin blue",57,null,"эмаль",0,null,null,null,null,"ММ019.10","019",null,"RAL 5002 ultramarin blue",57,null," патина сусальное золото",4,null,"как на фасаде",{"$f":"'Конструктор рамочного фасада'!#REF!","v":{"$error":"#REF!"}}]
[null,null,null,null,"Глухой с декором №2","12",null,null,null,null,"CS 193 grigio mimetico",58,null,null,null,null,null,null,null,"ММ021.10","021",null,"CS 193 grigio mimetico",58,null,"патина серебро",5]
[null,null,null,null,"Глухой с декором №3","13",null,null,null,null,"CS 076 marrone ligure",59,null,null,null,null,null,null,null,"ММ025.10","025",null,"CS 076 marrone ligure",59,null,"как на фасаде",{"$f":"'Конструктор рамочного фасада'!#REF!","v":{"$error":"#REF!"}}]
[null,null,null,null,"Глухой с декором №4","14",null,null,null,null,"CS 023 garvia",60,null,null,null,null,null,null,null,"ММ026.10","026",null,"CS 023 garvia",60,null,"нет патины",0]
[null,null,null,null,"Глухой+зеркало с фацетом 20мм","15",null,null,null,null," CS 014 pistacchio",61,null,null,null,null,null,null,null,"ММ027.10","027",null,"CS 014 pistacchio",61]
[null,null,null,null,"Рамка без вставки+уплотнитель","16",null,null,null,null," черный",62,null,null,null,null,null,null,null,"ММ028.10","028",null,"черный",62]
[null,null,null,null,"Вставка с фрезеровкой","17",null,null,null,null," RAL 1019 graubeige",63,null,null,null,null,null,null,null,"ММ029.10","029",null,"RAL 1019 graubeige",63]
[null,null,null,null,"Глухой с перемычкой","21",null,null,null,null," ПВХ 01 + краска 51(дуб св.)",64,null,null,null,null,null,null,null,null,null,null,"в цвет фасада",{"$f":"'Конструктор рамочного фасада'!#REF!","v":{"$error":"#REF!"}}]
[null,null,null,null,"Глухой с перемычкой +декор","31",null,null,null,null,"Белый глянец",65]
[null,null,null,null,"Глухой,перемычка, стекло","41",null,null,null,null,"ПВХ Дуб светлый","01"]
[null,null,null,null,"Глухой+декор,перемычка, стекло","51",null,null,null,null,"ПВХ Дуб темный","02"]
[]
[]
[]
[]
[]
[]
[null,"Профиль 1296"]

{"sheet":"Лист3","index":5,"n_rows":0,"n_cols":0,"rows_kept":0,"cut":false,"hidden":false,"merged":[]}